{"text_format":"3","workbook":"xlsx","n_sheets":1,"sheets":["PRICING SCHEDULE"],"not_rendered":{"images":1,"defined_names":2},"read":"whole","date_system":"1900"}

{"sheet":"PRICING SCHEDULE","index":0,"n_rows":37,"n_cols":17,"rows_kept":37,"merged":[[11,2,11,3],[12,2,12,3],[12,5,14,5],[13,2,13,3],[14,2,14,3],[16,4,16,6],[16,7,16,9],[16,10,16,12],[33,1,36,1],[33,2,33,3],[33,4,33,5],[34,2,34,3],[34,4,34,5],[35,2,35,3],[35,4,35,5],[36,2,36,3],[36,4,36,5]]}
[null,"SUPPLY CHAIN MANAGEMENT"]
[null,"Pricing schedule"]
["RFB No","RFB 3193-2025"]
["RFB Title","REQUEST FOR BID TO MIGRATE THE NETSCOUT – NGN SOLUTION TO THE NEW SOFTWARE VERSION 6.3.6 WITH MAINTENANCE AND SUPPORT FOR A PERIOD OF THREE (03) YEARS. "]
["Bidder Name "]
["1. INSTRUCTION FOR COMPLETING THE PRICING SCHEDULE"]
["(a)  Bidder must complete/enter YELLOW cells only"]
["(b)  Unit and Line prices must be VAT EXCLUSIVE and in South African Rand (ZAR) currency."]
["(c) The price must include all cost to deliver the goods or render the service, including all applicable taxes, duty fees, logistics/delivery, storage, labour, overtime and subsistance and travel"]
["(d)  Prices that are dependent on Rate of Exchange (ROE) must use ROE indicated below, then enter in Column \"Forex %\" the percentage of the price that is ROE dependent (0% means the price is not ROE dependent)"]
["(e) Bidders must complete and submit bid pricing in the provided Excel spreadsheet format, and any pricing schedule submitted in a different format will not be considered."]
[null,"Foreign currency","South African Rand (ZAR) exchange rate "]
[null,"1 US Dollar",{"v":17.3,"d":"R17.30"},null,null,"Mark with an X, which ROE is applicable"]
[null,"1 Euro",{"v":19.95,"d":"R19.95"}]
[null,"1 Pound (UK)",{"v":22.67,"d":"R22.67"}]
[]
[{"$nulls":4},"YEAR 1",null,null,"YEAR 2",null,null,"YEAR 3",null,null,"TOTAL"]
["Item No","Goods/Service description","Unit of measure","Forex %","Qty ","Unit Price \n(Excl VAT)","Line Price Y1","Qty","Unit Price \n(Excl VAT)","Line Price Y2","Qty","Unit Price \n(Excl VAT)","Line Price Y3","Line Price Term \n(Excl VAT)","Forex Price portion","BRAND / MODEL","Price clarification comment"]
[1,"Netscout - Upgrade Software phase 1",{"$nulls":4},{"$f":"SUBTOTAL(9,G20:G27)","v":0},null,null,{"$f":"SUBTOTAL(9,J20:J27)","v":0},null,null,{"$f":"SUBTOTAL(9,M20:M27)","v":0},{"$f":"SUBTOTAL(9,N20:N27)","v":0},{"$f":"SUBTOTAL(9,O20:O27)","v":0}]
["1.1","C-06695-00S-1-U-1M  - NETSCOUT Certified InfiniStreamNG Software to upgrade from version 6.3.2 to the new version 6.3.6 or latest","Each",{"v":0,"d":"0%"},11,null,{"$f":"E20*F20","v":0},null,null,{"$f":"H20*I20","v":0},null,null,{"$f":"K20*L20","v":0},{"$f":"SUM(G20,J20,M20)","v":0},{"$f":"D20*N20","v":0}]
[2,"Maintenance and Mastercare Support phase 1",{"$nulls":4},{"$f":"SUBTOTAL(9, G22:G27)","v":0},null,null,{"$f":"SUBTOTAL(9, J22:J27)","v":0},null,null,{"$f":"SUBTOTAL(9, M22:M27)","v":0},{"$f":"SUBTOTAL(9, N22:N27)","v":0},{"$f":"D21*N21","v":0}]
["2.1","9500L-DGM-nGenius Performance Manager, Dedicated Global Server (Linux)","Each",{"v":0,"d":"0%"},1,null,{"$f":"E22*F22","v":0},1,null,{"$f":"H22*I22","v":0},1,null,{"$f":"K22*L22","v":0},{"$f":"SUM(G22,J22,M22)","v":0},0]
["2.2","9500L-LO -nGenius Performance Manager Local Server - (Linux)","Each",{"v":0,"d":"0%"},2,null,0,2,null,0,2,null,0,0,0]
["2.3","9600L-ENT1-LO-nGenius Performance Manager Local Server - (Linux) nGeniusONE (Linux) - License Only","Each",{"v":0,"d":"0%"},3,null,0,3,null,0,3,null,0,0,0]
["2.4","732-74768-Dell Pro-Support Plus and Next Business Day Onsite  ","Each",{"v":0,"d":"0%"},3,null,0,3,null,0,3,null,0,0,0]
["2.5","C-06695-00S-1/C-06600-ZSGA1 - NETSCOUT Certified InfiniStreamNG Software, includes NETSCOUT 4-Port 10G ASI Accelerator NIC (SFP+), 1-socket, for use with C-06600 series certified appliance hardware","Each",{"v":0,"d":"0%"},11,null,0,11,null,0,11,null,0,0,0]
["2.6","PFOSN-YX5-01/C-50FCNANQH0J0- Packet Flow Operating System (PFOS) Software for Certified PFS 5010","Each",{"v":0,"d":"0%"},2,null,0,2,null,0,2,null,0,0,0]
[]
[null,"TOTAL BID PRICE  (EXCL VAT)",{"$nulls":4},{"$f":"G21+G19","v":0},null,null,{"$f":"J21+J19","v":0},null,null,{"$f":"M21+M19","v":0},{"$f":"N21+N19","v":0},{"$f":"SUBTOTAL(9,O19:O28)","v":0}]
[null,"VAT (@15%)",{"$nulls":4},{"$f":"G29*0.15","v":0},null,null,{"$f":"J29*0.15","v":0},null,null,{"$f":"M29*0.15","v":0},{"$f":"N29*0.15","v":0},{"$f":"O29*0.15","v":0}]
[null,"TOTAL  BID PRICE (INCL VAT)",{"$nulls":4},{"$f":"G29+G30","v":0},null,null,{"$f":"J29+J30","v":0},null,null,{"$f":"M29+M30","v":0},{"$f":"N29+N30","v":0},{"$f":"SUBTOTAL(9,O21:O30)","v":0}]
[]
[]
[null,"I, the bidder, confirm that the price(s) and rate(s) quoted cover all the goods and/or works specified in the bidding documents; that the price(s) or rate(s) cover all my obligations and I accept that any mistakes regarding price(s), rate(s) or calculations will be at my own risk.\n[Note: First convert to PDF, then add signature]"]
[null,null,"Name",null,"Capacity"]
[]
[null,null,"Signature (above)",null,"Date"]